fUSD/lending_fUSD_20250223
["ID","MTS","AMOUNT","RATE_DAILY","PERIOD"]
[354140482,1740281448596,-507.76176856,0.00012799,2]
[354140483,1740281448606,-505.14464445,0.00012799,2]
[354140484,1740281448616,-503.54259887,0.00012799,2]
[354140485,1740281448625,-501.59888743,0.00012799,2]
[354140486,1740281448635,-513.08848562,0.00012799,2]
[354140487,1740281448645,-527.15781296,0.00012799,2]
[354140488,1740281448654,-501.58161973,0.00012799,2]
[354140489,1740281448664,-501.58882553,0.00012799,2]
[354140490,1740281448673,-198.1331047,0.00012799,2]
[354140491,1740281448683,-507.47634137,0.00012799,2]
[354140492,1740281448692,-504.23054478,0.00012799,2]
[354140493,1740281448702,-519.00892472,0.00012799,2]
[354140494,1740281448711,-503.24700877,0.00012799,2]
[354140495,1740281448721,-511.77069275,0.00012799,2]
[354140496,1740281448731,-611.78260805,0.00012799,2]
[354140497,1740281448740,-502.26180168,0.00012799,2]
[354140498,1740281448750,-506.21927439,0.00012799,2]
[354140499,1740281448759,-504.35556956,0.00012799,2]
[354140500,1740281448768,-505.97031505,0.00012799,2]
[354140501,1740281448835,-515.36660096,0.00012799,2]
[354140502,1740281448844,-514.44990217,0.00012799,2]
[354140503,1740281448853,-524.25045409,0.00012799,2]
[354140504,1740281448863,-869.93,0.00012799,2]
[354140505,1740281448872,-869.93,0.00012799,2]
[354140506,1740281448881,-869.93,0.00012799,2]
[354140507,1740281448891,-869.93,0.00012799,2]
[354140508,1740281448900,-869.93,0.00012799,2]
[354140509,1740281448909,-869.93,0.00012799,2]
[354140510,1740281448918,-1000.0,0.00012799,2]
[354140511,1740281448927,-1000.0,0.00012799,2]
[354140512,1740281448936,-1000.0,0.00012799,2]
[354140513,1740281448946,-1000.0,0.00012799,2]
[354140514,1740281448955,-1000.0,0.00012799,2]
[354140515,1740281448964,-1000.0,0.00012799,2]
[354140516,1740281448974,-1000.0,0.00012799,2]
[354140517,1740281448985,-520.72462827,0.00012799,2]
[354140518,1740281448995,-514.85263971,0.00012799,2]
[354140519,1740281449004,-500.0,0.00012799,2]
[354140520,1740281449013,-500.0,0.00012799,2]
[354140521,1740281449022,-500.0,0.00012799,2]
[354140522,1740281449033,-232.0426758,0.00012799,2]
[354140523,1740281449042,-521.867863,0.00012799,2]
[354140524,1740281449052,-523.75097306,0.00012799,2]
[354140525,1740281449063,-508.42686628,0.00012799,2]
[354140526,1740281449073,-520.97174851,0.00012799,2]
[354140527,1740281449082,-300.0,0.00012799,2]
[354140528,1740281449091,-300.0,0.00012799,2]
[354140529,1740281449100,-666.0,0.00012799,2]
[354140530,1740281449109,-651.0,0.000128,2]
[354140531,1740281449118,-1460121.08024894,0.000128,5]
[354140532,1740281449128,-151.0,0.000128,2]
[354140533,1740281449137,-151.0,0.000128,2]
[354140534,1740281449148,-151.0,0.000128,2]
[354140535,1740281449157,-453.479253,0.000128,2]
[354140536,1740281449167,-151.0,0.000128,2]
[354140537,1740281449176,-453.479253,0.000128,2]
[354140538,1740281449186,-151.0,0.000128,2]
[354140539,1740281449196,-151.0,0.000128,2]
[354140540,1740281449207,-151.0,0.000128,2]
[354140541,1740281449216,-151.0,0.000128,2]
[354140542,1740281449226,-10000.0,0.000128,2]
[354140543,1740281449235,-10000.0,0.000128,2]
[354140544,1740281449245,-10000.0,0.000128,2]
[354140545,1740281449254,-10000.0,0.000128,2]
[354140546,1740281449263,-10000.0,0.000128,2]
[354140547,1740281449273,-150.0,0.00012801,2]
[354140548,1740281449283,-1000.0,0.00012809,2]
[354140549,1740281449292,-300.0,0.00012829,2]
[354140550,1740281449301,-150.0,0.0001283,2]
[354140551,1740281449311,-150.0,0.00012842,2]
[354140552,1740281449320,-1000.0,0.00012866,2]
[354140553,1740281449329,-155.0,0.00012867,2]
[354140554,1740281449339,-155.0,0.00012867,2]
[354140555,1740281449348,-155.0,0.00012867,2]
[354140556,1740281449357,-185.64802442,0.00012867,2]
[354140557,1740281449366,-500.0,0.0001287,2]
[354140558,1740281449376,-539.07774849,0.0001287,2]
[354140559,1740281449387,-500.0,0.0001287,2]
[354140560,1740281449398,-500.0,0.0001287,2]
[354140561,1740281449407,-643.77996936,0.0001287,2]
[354140562,1740281449418,-500.0,0.00012872,2]
[354140563,1740281449428,-380.888702,0.00012872,2]
[354140564,1740281449438,-500.0,0.00012872,2]
[354140565,1740281449447,-500.0,0.00012872,2]
[354140566,1740281449458,-500.0,0.00012872,2]
[354140567,1740281449468,-522.39310902,0.00012872,2]
[354140568,1740281449477,-522.82913996,0.00012872,2]
[354140569,1740281449487,-526.50833092,0.00012872,2]
[354140570,1740281449496,-179.930976,0.00012872,2]
[354140571,1740281449506,-596.02542464,0.00012872,2]
[354140572,1740281449516,-500.0,0.00012872,2]
[354140573,1740281449526,-500.0,0.00012872,2]
[354140574,1740281449535,-500.0,0.00012872,2]
[354140575,1740281449544,-500.0,0.00012872,2]
[354140576,1740281449554,-272.87033099,0.00012872,2]
[354140577,1740281449563,-518.12647499,0.00012872,2]
[354140578,1740281449573,-528.5689901,0.00012872,2]
[354140579,1740281449582,-500.0,0.00012872,2]
[354140580,1740281449592,-500.0,0.00012872,2]
[354140581,1740281449602,-527.17121005,0.00012872,2]
[354140582,1740281449611,-252.18,0.00012877,2]
[354140583,1740281449621,-500.0,0.0001288,2]
[354140584,1740281449632,-512.30398528,0.0001288,2]
[354140585,1740281449641,-472.43983089,0.0001288,2]
[354140586,1740281449651,-388.8408802,0.0001288,2]
[354140587,1740281449660,-591.16126631,0.0001288,2]
[354140588,1740281449670,-517.65206736,0.0001288,2]
[354140589,1740281449679,-582.58016596,0.0001288,2]
[354140590,1740281449689,-488.80820439,0.0001288,2]
[354140591,1740281449699,-2161.57,0.0001288,2]
[354140592,1740281449708,-198.40013794,0.0001288,2]
[354140593,1740281449717,-447.54393045,0.0001288,2]
[354140594,1740281449727,-178.78704455,0.0001288,2]
[354140595,1740281449736,-175.17078819,0.0001288,2]
[354140596,1740281449745,-560.20285124,0.0001288,2]
[354140597,1740281449755,-538.17922737,0.0001288,2]
[354140598,1740281449765,-154.76445377,0.0001288,2]
[354140599,1740281449774,-322.91109833,0.0001288,2]
[354140600,1740281449784,-500.0,0.0001288,2]
[354140601,1740281449793,-556.71182632,0.0001288,2]
[354140602,1740281449803,-500.0,0.0001288,2]
[354140603,1740281449812,-379.32079485,0.0001288,2]
[354140604,1740281449822,-557.30981567,0.0001288,2]
[354140605,1740281449831,-515.07655901,0.0001288,2]
[354140606,1740281449842,-448.55086312,0.0001288,2]
[354140607,1740281449851,-500.0,0.0001288,2]
[354140608,1740281449861,-398.19789766,0.0001288,2]
[354140609,1740281449870,-159.33544226,0.0001288,2]
[354140610,1740281449880,-153.40987445,0.0001288,2]
[354140611,1740281449889,-407.92654506,0.0001288,2]
[354140612,1740281449898,-251.6799022,0.0001288,2]
[354140613,1740281449908,-502.34220962,0.0001288,2]
[354140614,1740281449917,-519.48830483,0.0001288,2]
[354140615,1740281449927,-500.0,0.0001288,2]
[354140616,1740281449936,-511.79035729,0.0001288,2]
[354140617,1740281449945,-515.36273776,0.0001288,2]
[354140618,1740281449954,-397.9096633,0.0001288,2]
[354140619,1740281449964,-492.09948436,0.0001288,2]
[354140620,1740281449974,-501.8669868,0.0001288,2]
[354140621,1740281449984,-522.67685571,0.0001288,2]
[354140622,1740281449996,-500.0,0.0001288,2]
[354140623,1740281450006,-518.22955601,0.0001288,2]
[354140624,1740281450017,-502.62968071,0.0001288,2]
[354140625,1740281450027,-500.0,0.0001288,2]
[354140626,1740281450037,-500.0,0.0001288,2]
[354140627,1740281450046,-482.00136343,0.0001288,2]
[354140628,1740281450055,-510.17084683,0.0001288,2]
[354140629,1740281450066,-233.99212548,0.0001288,2]
[354140630,1740281450075,-460.48246262,0.0001288,2]
[354140631,1740281450085,-150.0,0.0001288,2]
[354140632,1740281450095,-177.52975584,0.0001288,2]
[354140633,1740281450104,-381.88818462,0.0001288,2]
[354140634,1740281450113,-516.25515113,0.0001288,2]
[354140635,1740281450122,-517.7861359,0.0001288,2]
[354140636,1740281450131,-500.0,0.00012881,2]
[354140637,1740281450140,-150.0,0.00012882,2]
[354140638,1740281450149,-150.0,0.00012886,2]
[354140639,1740281450158,-150.0,0.0001289,2]
[354140640,1740281450167,-204.37891366,0.000129,2]
[354140641,1740281450177,-150.0,0.00012913,2]
[354140642,1740281450186,-150.0,0.00012934,2]
[354140643,1740281450195,-150.0,0.00012938,2]
[354140644,1740281450204,-205.13110676,0.00012953,2]
[354140645,1740281450214,-151.22178947,0.00012953,2]
[354140646,1740281450223,-500.0,0.00012955,2]
[354140647,1740281450233,-380.888702,0.00012955,2]
[354140648,1740281450242,-500.0,0.00012955,2]
[354140649,1740281450252,-572.15004584,0.00012955,2]
[354140650,1740281450261,-150.0,0.0001296,2]
[354140651,1740281450272,-150.0,0.00012962,2]
[354140652,1740281450282,-2161.57,0.00012963,2]
[354140653,1740281450291,-181.34221988,0.00012963,2]
[354140654,1740281450301,-500.0,0.00012964,2]
[354140655,1740281450311,-150.0,0.00012969,2]
[354140656,1740281450321,-2115.3517602,0.00012971,2]
[354140657,1740281450330,-502.6056112,0.00012973,2]
[354140658,1740281450340,-502.08871274,0.00012973,2]
[354140659,1740281450349,-500.0,0.00012973,2]
[354140660,1740281450359,-212.66821342,0.00012973,2]
[354140661,1740281450369,-168.91932643,0.00012973,2]
[354140662,1740281450378,-220.0,0.00012976,2]
[354140663,1740281450388,-550.0,0.00012976,2]
[354140664,1740281450399,-300.0,0.00012979,2]
[354140665,1740281450409,-300.0,0.00012979,2]
[354140666,1740281450419,-666.0,0.00012979,2]
[354140667,1740281450428,-500.0,0.00012979,2]
[354140668,1740281450438,-500.0,0.00012979,2]
[354140669,1740281450448,-869.93,0.00012979,2]
[354140670,1740281450457,-1000.0,0.00012979,2]
[354140671,1740281450468,-334856.81917166,0.0001298,3]
[354140672,1740281450478,-150.27718658,0.00012985,2]
[354140673,1740281450488,-500.0,0.00012985,2]
[354140674,1740281450498,-869.93,0.00012986,2]
[354140675,1740281450508,-1000.0,0.00012986,2]
[354140676,1740281450518,-2768.32577388,0.00012986,2]
[354140677,1740281450527,-34230.0,0.00012986,2]
[354140678,1740281450537,-5738.0,0.00012986,2]
[354140679,1740281450546,-173.35925711,0.00012986,2]
[354140680,1740281450555,-157.0700453,0.00012986,2]
[354140681,1740281450565,-162.56374109,0.00012986,2]
[354140682,1740281450576,-200.2411003,0.00012986,2]
[354140683,1740281450585,-1694.5593379,0.00012991,2]
[354140684,1740281450595,-2070.9520706,0.00012991,2]
[354140685,1740281450604,-502.85440539,0.00012999,2]
[354140686,1740281450614,-300.0,0.00012999,2]
[354140687,1740281450623,-300.0,0.00012999,2]
[354140688,1740281450633,-697.7631628,0.00012999,2]
[354140689,1740281450642,-3500.0,0.00013,2]
[354140690,1740281450651,-4244.1429383,0.00013,2]
[354140691,1740281450660,-700.37219969,0.00013,2]
[354140692,1740281450670,-125558.85142807,0.00013,2]
[354140693,1740281450679,-1332.4975217,0.00013,2]
[354140694,1740281450688,-150.0,0.00013,2]
[354140695,1740281450697,-273.26,0.00013,2]
[354140696,1740281450706,-250.0,0.00013,2]
[354140697,1740281450715,-250.0,0.00013,2]
[354140698,1740281450725,-250.0,0.00013,2]
[354140699,1740281450734,-250.0,0.00013,2]
[354140700,1740281450743,-250.0,0.00013,2]
[354140701,1740281450752,-250.0,0.00013,2]
[354140702,1740281450762,-250.0,0.00013,2]
[354140703,1740281450771,-250.0,0.00013,2]
[354140704,1740281450780,-250.0,0.00013,2]
[354140705,1740281450789,-250.0,0.00013,2]
[354140706,1740281450799,-250.0,0.00013,2]
[354140707,1740281450809,-250.0,0.00013,2]
[354140708,1740281450821,-250.0,0.00013,2]
[354140709,1740281450831,-250.0,0.00013,2]
[354140710,1740281450840,-250.0,0.00013,2]
[354140711,1740281450850,-250.0,0.00013,2]
[354140712,1740281450859,-250.0,0.00013,2]
[354140713,1740281450868,-250.0,0.00013,2]
[354140714,1740281450877,-250.0,0.00013,2]
[354140715,1740281450887,-250.0,0.00013,2]
[354140716,1740281450896,-250.0,0.00013,2]
[354140717,1740281450906,-250.0,0.00013,2]
[354140718,1740281450915,-250.0,0.00013,2]
[354140719,1740281450925,-250.0,0.00013,2]
[354140720,1740281450935,-250.0,0.00013,2]
[354140721,1740281450944,-250.0,0.00013,2]
[354140722,1740281450954,-250.0,0.00013,2]
[354140723,1740281450963,-250.0,0.00013,2]
[354140724,1740281450972,-267.0,0.00013,2]
[354140725,1740281450982,-1012.0,0.00013,2]
[354140726,1740281450994,-1012.3203,0.00013,2]
[354140727,1740281451003,-712.9239,0.00013,2]
[354140728,1740281451013,-755.7929,0.00013,2]
[354140729,1740281451023,-328.0,0.00013,2]
[354140730,1740281451034,-328.0,0.00013,2]
[354140731,1740281451043,-328.0,0.00013,2]
[354140732,1740281451053,-328.0,0.00013,2]
[354140733,1740281451064,-328.0,0.00013,2]
[354140734,1740281451074,-328.0,0.00013,2]
[354140735,1740281451084,-328.0,0.00013,2]
[354140736,1740281451093,-328.0,0.00013,2]
[354140737,1740281451102,-328.0,0.00013,2]
[354140738,1740281451112,-328.0,0.00013,2]
[354140739,1740281451122,-328.0,0.00013,2]
[354140740,1740281451131,-328.0,0.00013,2]
[354140741,1740281451140,-328.0,0.00013,2]
[354140742,1740281451151,-328.0,0.00013,2]
[354140743,1740281451161,-328.0,0.00013,2]
[354140744,1740281451170,-328.0,0.00013,2]
[354140745,1740281451180,-328.0,0.00013,2]
[354140746,1740281451190,-328.0,0.00013,2]
[354140747,1740281451200,-328.0,0.00013,2]
[354140748,1740281451210,-328.0,0.00013,2]
[354140749,1740281451219,-328.0,0.00013,2]
[354140750,1740281451229,-328.0,0.00013,2]
[354140751,1740281451238,-328.0,0.00013,2]
[354140752,1740281451249,-328.0,0.00013,2]
[354140753,1740281451259,-328.0,0.00013,2]
[354140754,1740281451269,-328.0,0.00013,2]
[354140755,1740281451279,-328.0,0.00013,2]
[354140756,1740281451288,-328.0,0.00013,2]
[354140757,1740281451297,-328.0,0.00013,2]
[354140758,1740281451307,-328.0,0.00013,2]
[354140759,1740281451317,-328.0,0.00013,2]
[354140760,1740281451326,-328.0,0.00013,2]
[354140761,1740281451336,-328.0,0.00013,2]
[354140762,1740281451345,-328.0,0.00013,2]
[354140763,1740281451354,-328.0,0.00013,2]
[354140764,1740281451364,-328.0,0.00013,2]
[354140765,1740281451373,-328.0,0.00013,2]
[354140766,1740281451383,-328.0,0.00013,2]
[354140767,1740281451394,-328.0,0.00013,2]
[354140768,1740281451404,-328.0,0.00013,2]
[354140769,1740281451413,-328.0,0.00013,2]
[354140770,1740281451423,-328.0,0.00013,2]
[354140771,1740281451432,-328.0,0.00013,2]
[354140772,1740281451442,-328.0,0.00013,2]
[354140773,1740281451452,-328.0,0.00013,2]
[354140774,1740281451462,-328.0,0.00013,2]
[354140775,1740281451471,-328.0,0.00013,2]
[354140776,1740281451481,-328.0,0.00013,2]
[354140777,1740281451491,-328.0,0.00013,2]
[354140778,1740281451501,-328.0,0.00013,2]
[354140779,1740281451511,-328.0,0.00013,2]
[354140780,1740281451521,-328.0,0.00013,2]
[354140781,1740281451531,-328.0,0.00013,2]
[354140782,1740281451540,-328.0,0.00013,2]
[354140783,1740281451550,-328.0,0.00013,2]
[354140784,1740281451559,-328.0,0.00013,2]
[354140785,1740281451568,-328.0,0.00013,2]
[354140786,1740281451578,-328.0,0.00013,2]
[354140787,1740281451587,-328.0,0.00013,2]
[354140788,1740281451597,-328.0,0.00013,2]
[354140789,1740281451607,-328.0,0.00013,2]
[354140790,1740281451617,-328.0,0.00013,2]
[354140791,1740281451626,-328.0,0.00013,2]
[354140792,1740281451636,-328.0,0.00013,2]
[354140793,1740281451647,-328.0,0.00013,2]
[354140794,1740281451656,-328.0,0.00013,2]
[354140795,1740281451666,-328.0,0.00013,2]
[354140796,1740281451675,-328.0,0.00013,2]
[354140797,1740281451685,-328.0,0.00013,2]
[354140798,1740281451695,-328.0,0.00013,2]
[354140799,1740281451705,-328.0,0.00013,2]
[354140800,1740281451714,-328.0,0.00013,2]
[354140801,1740281451724,-328.0,0.00013,2]
[354140802,1740281451733,-328.0,0.00013,2]
[354140803,1740281451743,-328.0,0.00013,2]
[354140804,1740281451753,-328.0,0.00013,2]
[354140805,1740281451763,-328.0,0.00013,2]
[354140806,1740281451772,-328.0,0.00013,2]
[354140807,1740281451782,-328.0,0.00013,2]
[354140808,1740281451792,-328.0,0.00013,2]
[354140809,1740281451801,-328.0,0.00013,2]
[354140810,1740281451811,-328.0,0.00013,2]
[354140811,1740281451821,-328.0,0.00013,2]
[354140812,1740281451830,-328.0,0.00013,2]
[354140813,1740281451840,-328.0,0.00013,2]
[354140814,1740281451850,-328.0,0.00013,2]
[354140815,1740281451862,-328.0,0.00013,2]
[354140816,1740281451876,-328.0,0.00013,2]
[354140817,1740281451886,-328.0,0.00013,2]
[354140818,1740281451896,-328.0,0.00013,2]
[354140819,1740281451906,-328.0,0.00013,2]
[354140820,1740281451916,-328.0,0.00013,2]
[354140821,1740281451926,-328.0,0.00013,2]
[354140822,1740281451936,-328.0,0.00013,2]
[354140823,1740281451948,-328.0,0.00013,2]
[354140824,1740281451958,-328.0,0.00013,2]
[354140825,1740281451968,-328.0,0.00013,2]
[354140826,1740281451978,-328.0,0.00013,2]
[354140827,1740281451990,-328.0,0.00013,2]
[354140828,1740281452000,-500.0,0.00013012,2]
[354140829,1740281452009,-500.0,0.00013037,2]
[354140830,1740281452019,-380.888702,0.00013037,2]
[354140831,1740281452029,-500.0,0.00013037,2]
[354140832,1740281452039,-500.0,0.0001304,2]
[354140833,1740281452048,-2161.57,0.00013045,2]
[354140834,1740281452058,-500.0,0.00013046,2]
[354140835,1740281452069,-5124.71926845,0.0001305,2]
[354140836,1740281452079,-500.0,0.00013067,2]
[354140837,1740281452089,-747.47608492,0.00013095,2]
[354140838,1740281452099,-500.0,0.00013119,2]
[354140839,1740281452108,-380.888702,0.00013119,2]
[354140840,1740281452118,-500.0,0.00013119,2]
[354140841,1740281452128,-903.36,0.00013125,2]
[354140842,1740281452138,-2161.57,0.00013127,2]
[354140843,1740281452148,-500.0,0.00013128,2]
[354140844,1740281452159,-581.62907,0.000132,2]
[354140845,1740281452169,-1000.0,0.000132,2]
[354140846,1740281452179,-500.0,0.00013201,2]
[354140847,1740281452189,-500.0,0.00013201,2]
[354140848,1740281452198,-2161.57,0.00013209,2]
[354140849,1740281452208,-500.0,0.0001321,2]
[354140850,1740281452218,-203.82265411,0.00013233,2]
[354140851,1740281452228,-197.54959622,0.00013283,2]
[354140852,1740281452238,-500.0,0.00013283,2]
[354140853,1740281452248,-2161.57,0.00013291,2]
[354140854,1740281452257,-500.0,0.00013292,2]
[354140855,1740281452267,-823.0,0.00013309,2]
[354140856,1740281452277,-1681.8223276,0.00013361,2]
[354140857,1740281452287,-500.0,0.00013366,2]
[354140858,1740281452297,-322430.60784487,0.0001337,2]
[354140859,1740281452307,-187.413794,0.0001337,2]
[354140860,1740281452318,-151.0,0.0001337,2]
[354140861,1740281452328,-297.394294,0.0001337,2]
[354140862,1740281452338,-1446.880454,0.0001337,2]
[354140863,1740281452349,-1446.880454,0.0001337,2]
[354140864,1740281452359,-180.943033,0.0001337,2]
[354140865,1740281452370,-151.0,0.0001337,2]
[354140866,1740281452508,-180.943033,0.0001337,2]
[354140867,1740281452517,-151.0,0.0001337,2]
[354140868,1740281452527,-151.0,0.0001337,2]
[354140869,1740281452537,-151.0,0.0001337,2]
[354140870,1740281452546,-151.0,0.0001337,2]
[354140871,1740281452557,-151.0,0.0001337,2]
[354140872,1740281452567,-151.0,0.0001337,2]
[354140873,1740281452576,-151.0,0.0001337,2]
[354140874,1740281452585,-453.479253,0.0001337,2]
[354140875,1740281452594,-151.0,0.0001337,2]
[354140876,1740281452603,-453.479253,0.0001337,2]
[354140877,1740281452612,-151.0,0.0001337,2]
[354140878,1740281452622,-151.0,0.0001337,2]
[354140879,1740281452631,-151.0,0.0001337,2]
[354140880,1740281452640,-151.0,0.0001337,2]
[354140881,1740281452650,-151.0,0.0001337,2]
[354140882,1740281452659,-10000.0,0.0001337,2]
[354140883,1740281452668,-10000.0,0.0001337,2]
[354140884,1740281452677,-10000.0,0.0001337,2]
[354140885,1740281452686,-10000.0,0.0001337,2]
[354140886,1740281452695,-10000.0,0.0001337,2]
[354140887,1740281452704,-161.07095869,0.00013373,2]
[354140888,1740281452713,-151.51410263,0.00013373,2]
[354140889,1740281452722,-500.0,0.00013373,2]
[354140890,1740281452731,-152.16304609,0.00013373,2]
[354140891,1740281452741,-151.4964419,0.00013373,2]
[354140892,1740281452750,-2161.57,0.00013373,2]
[354140893,1740281452759,-625.30668522,0.00013375,2]
[354140894,1740281452768,-500.0,0.00013424,2]
[354140895,1740281452777,-643.79885189,0.00013424,2]
[354140896,1740281452787,-500.0,0.00013448,2]
[354140897,1740281452796,-2161.57,0.00013456,2]
[354140898,1740281452805,-502.12081475,0.00013521,2]
[354140899,1740281452814,-243.42773515,0.00013524,2]
[354140900,1740281452823,-605.0,0.00013524,2]
[354140901,1740281452832,-142149.77128681,0.0001353,2]
[354140902,1740281452842,-500.0,0.0001353,2]
[354140903,1740281452851,-2161.57,0.00013538,2]
[354140904,1740281452860,-204.37891366,0.00013567,2]
[354140905,1740281452869,-200011.9604854,0.000136,2]
[354140906,1740281452879,-555.28928419,0.00013612,2]
[354140907,1740281452888,-2161.57,0.0001362,2]
[354140908,1740281452898,-300.0,0.00013698,2]
[354140909,1740281452907,-500.0,0.00013698,2]
[354140910,1740281452916,-500.0,0.00013698,2]
[354140911,1740281452925,-500.0,0.00013698,2]
[354140912,1740281452934,-500.0,0.00013698,2]
[354140913,1740281452943,-500.0,0.00013698,2]
[354140914,1740281452952,-594.09278385,0.00013698,2]
[354140915,1740281452961,-1056.86,0.00013698,2]
[354140916,1740281452970,-500.0,0.00013698,2]
[354140917,1740281452979,-500.0,0.00013698,2]
[354140918,1740281452992,-500.0,0.00013698,2]
[354140919,1740281453001,-500.0,0.00013698,2]
[354140920,1740281453010,-500.0,0.00013698,2]
[354140921,1740281453019,-500.0,0.00013698,2]
[354140922,1740281453029,-500.0,0.00013698,2]
[354140923,1740281453038,-500.0,0.00013698,2]
[354140924,1740281453047,-500.0,0.00013698,2]
[354140925,1740281453056,-350.2291057,0.00013698,2]
[354140926,1740281453067,-520.30532506,0.00013698,2]
[354140927,1740281453076,-869.93,0.00013698,2]
[354140928,1740281453085,-1000.0,0.00013698,2]
[354140929,1740281453095,-1000.88826959,0.00013698,2]
[354140930,1740281453104,-4896.79395509,0.00013698,2]
[354140931,1740281453113,-1000.0,0.00013698,2]
[354140932,1740281453123,-504.86106825,0.00013698,2]
[354140933,1740281453132,-500.0,0.00013699,2]
[354140934,1740281453141,-500.0,0.00013699,2]
[354140935,1740281453152,-4000.0,0.00013699,2]
[354140936,1740281453161,-173.17,0.00013699,2]
[354140937,1740281453171,-200.0,0.00013699,2]
[354140938,1740281453180,-1551.88,0.00013699,2]
[354140939,1740281453189,-22711.79,0.00013699,2]
[354140940,1740281453198,-10050.81,0.00013699,2]
[354140941,1740281453207,-500.0,0.00013699,2]
[354140942,1740281453216,-159.4,0.00013699,2]
[354140943,1740281453225,-10637.48,0.00013699,2]
[354140944,1740281453235,-160.86782404,0.00013699,2]
[354140945,1740281453245,-500.31056792,0.00013699,2]
[354140946,1740281453254,-159.85274958,0.00013699,2]
[354140947,1740281453263,-500.0,0.00013699,2]
[354140948,1740281453272,-500.0,0.00013699,2]
[354140949,1740281453281,-500.0,0.00013699,2]
[354140950,1740281453290,-500.0,0.00013699,2]
[354140951,1740281453300,-564.11019911,0.00013699,2]
[354140952,1740281453309,-600.0,0.000137,2]
[354140953,1740281453319,-325.0,0.000137,2]
[354140954,1740281453328,-2161.57,0.00013702,2]
[354140955,1740281453338,-30000.0,0.00013719,2]
[354140956,1740281453347,-5800.0,0.00013752,2]
[354140957,1740281453356,-5800.0,0.0001376,2]
[354140958,1740281453365,-5800.0,0.00013769,2]
[354140959,1740281453374,-5800.0,0.00013777,2]
[354140960,1740281453384,-2161.57,0.00013784,2]
[354140961,1740281453393,-5800.0,0.00013786,2]
[354140962,1740281453403,-5800.0,0.00013794,2]
[354140963,1740281453412,-151.126,0.00013818,2]
[354140964,1740281453421,-642.914,0.00013818,2]
[354140965,1740281453431,-572.172,0.00013818,2]
[354140966,1740281453440,-1888.655,0.00013818,2]
[354140967,1740281453449,-918.677,0.00013818,2]
[354140968,1740281453459,-794.0,0.00013818,2]
[354140969,1740281453468,-1271.286,0.00013818,2]
[354140970,1740281453477,-546.096,0.00013818,2]
[354140971,1740281453486,-4054.954,0.00013818,2]
[354140972,1740281453495,-1016.156,0.00013818,2]
[354140973,1740281453505,-3955.167,0.00013818,2]
[354140974,1740281453514,-152.09,0.00013818,2]
[354140975,1740281453524,-253.011,0.00013818,2]
[354140976,1740281453533,-1288.331,0.00013818,2]
[354140977,1740281453543,-1056.86,0.00013835,2]
[354140978,1740281453551,-1000.0,0.00013842,2]
[354140979,1740281453561,-2161.57,0.00013867,2]
[354140980,1740281453572,-1251.2708163,0.0001389,2]
[354140981,1740281453581,-1529.2010317,0.0001389,2]